bitfinex/quotes_BTCUSD_20240915
["timestamp","ask_amount","ask_price","bid_price","bid_amount"]
[1726441698422,0.168406,59381.0,59369.0,0.04665049]
[1726441698633,0.16841,59379.0,59369.0,0.04665049]
[1726441698843,0.16841,59379.0,59368.0,0.45279213]
[1726441698844,0.336845,59375.0,59368.0,0.45279213]
[1726441699051,0.01536475,59378.0,59368.0,0.45279213]
[1726441699280,0.02644773,59380.0,59368.0,0.45279213]
[1726441699733,0.04653521,59379.0,59368.0,0.45279213]
[1726441699937,0.03113948,59378.0,59368.0,0.45279213]
[1726441700145,0.36797048,59377.0,59368.0,0.45279213]
[1726441700366,0.03113948,59376.0,59368.0,0.45279213]
[1726441700574,0.01539367,59377.0,59368.0,0.45279213]
[1726441700575,0.03113948,59375.0,59368.0,0.45279213]
[1726441700807,0.03113948,59374.0,59368.0,0.45279213]
[1726441701014,0.03113948,59373.0,59368.0,0.49807134]
[1726441701224,0.03112013,59372.0,59370.0,0.023]
[1726441701438,0.02644758,59373.0,59371.0,0.06814602]
[1726441701652,0.01929865,59372.0,59371.0,0.06814602]
[1726441701866,0.01929865,59372.0,59371.0,0.59644202]
[1726441702087,0.01929865,59372.0,59371.0,0.09114602]
[1726441702368,0.0261976,59379.0,59371.0,0.09114602]
[1726441702581,0.0261976,59379.0,59376.0,0.45279213]
[1726441702799,0.01539407,59378.0,59376.0,0.45279213]
[1726441703213,0.0264459,59381.0,59376.0,0.45279213]
[1726441704531,0.0264459,59381.0,59372.0,0.08123742]
[1726441704736,0.0264459,59381.0,59367.0,0.034581]
[1726441704737,0.0264459,59381.0,59367.0,0.000821]
[1726441704953,0.01539407,59380.0,59367.0,0.000821]
[1726441705589,0.168412,59379.0,59367.0,0.000821]
[1726441705820,0.168412,59379.0,59370.0,0.45279213]
[1726441706044,0.01541809,59378.0,59370.0,0.45279213]
[1726441706941,0.0264459,59381.0,59370.0,0.45279213]
[1726441707156,0.01541809,59377.0,59370.0,0.45279213]
[1726441707366,0.0264459,59381.0,59370.0,0.45279213]
[1726441707618,0.01541809,59376.0,59370.0,0.45279213]
[1726441707856,0.16841,59379.0,59370.0,0.45279213]
[1726441708101,0.01541809,59375.0,59370.0,0.45279213]
[1726441708346,0.02644821,59377.0,59370.0,0.45279213]
[1726441708585,0.18384209,59374.0,59370.0,0.45279213]
[1726441708809,0.168421,59375.0,59370.0,0.45279213]
[1726441709037,0.01541809,59373.0,59370.0,0.45279213]
[1726441709264,0.05,59379.0,59370.0,0.45279213]
[1726441709495,0.505321,59368.0,59367.0,0.000821]
[1726441710015,0.85762009,59368.0,59367.0,0.000821]
[1726441710258,0.52073909,59368.0,59367.0,0.000821]
[1726441710472,0.01541809,59368.0,59367.0,0.000821]
[1726441710900,0.336861,59372.0,59367.0,0.000821]
[1726441711132,0.01536738,59368.0,59367.0,0.000821]
[1726441711377,0.02997828,59368.0,59367.0,0.000821]
[1726441711839,0.04534566,59368.0,59367.0,0.000821]
[1726441712316,0.04534566,59368.0,59352.0,0.168485]
[1726441712317,0.04534566,59368.0,59352.0,0.00336861]
[1726441712529,0.02997828,59367.0,59352.0,0.00336861]
[1726441712787,0.02997828,59366.0,59352.0,0.00336861]
[1726441713006,0.02997828,59365.0,59352.0,0.00336861]
[1726441713254,0.01536738,59366.0,59345.0,0.03376]
[1726441713255,0.0564324,59364.0,59345.0,0.03376]
[1726441713474,0.168464,59360.0,59347.0,0.03376]
[1726441713702,0.02997828,59363.0,59347.0,0.03376]
[1726441713703,0.19844728,59359.0,59347.0,0.03376]
[1726441713954,0.02997828,59358.0,59347.0,0.03376]
[1726441714173,0.02997828,59357.0,59347.0,0.03376]
[1726441714421,0.07534579,59356.0,59347.0,0.03376]
[1726441714665,0.04888949,59355.0,59347.0,0.03376]
[1726441714901,1.0107987,59348.0,59347.0,0.03376]
[1726441715125,0.04888949,59354.0,59335.0,0.03376]
[1726441715126,0.51536738,59354.0,59335.0,0.03376]
[1726441715375,0.05,59352.0,59335.0,0.03376]
[1726441715620,0.168511,59344.0,59335.0,0.03376]
[1726441715859,0.0492187,59343.0,59334.0,0.29503666]
[1726441716073,0.0492187,59343.0,59340.0,0.29503666]
[1726441716074,0.0492187,59342.0,59340.0,0.29503666]
[1726441716304,0.0492187,59341.0,59340.0,0.29503666]
[1726441716545,0.0492187,59341.0,59335.0,0.29503666]
[1726441716770,0.0492187,59340.0,59335.0,0.29503666]
[1726441716999,0.0492187,59339.0,59335.0,0.29503666]
[1726441717213,0.0492187,59338.0,59335.0,0.29503666]
[1726441717473,0.0492187,59337.0,59327.0,0.03376]
[1726441717718,0.337076,59334.0,59320.0,0.29503666]
[1726441717952,0.0492187,59336.0,59320.0,0.29503666]
[1726441717953,0.0492187,59333.0,59320.0,0.29503666]
[1726441718177,0.0492187,59333.0,59320.0,0.32811633]
[1726441718178,0.0492187,59332.0,59320.0,0.32811633]
[1726441718416,0.0492187,59331.0,59320.0,0.32811633]
[1726441718651,0.0492187,59330.0,59320.0,0.29503666]
[1726441718878,0.0492187,59329.0,59320.0,0.29503666]
[1726441719140,0.0492187,59328.0,59320.0,0.29503666]
[1726441719355,0.02646887,59333.0,59320.0,0.29503666]
[1726441719356,0.0492187,59327.0,59320.0,0.29503666]
[1726441719582,0.0492187,59327.0,59313.0,0.03376]
[1726441719583,0.3251,59320.0,59313.0,0.03376]
[1726441719840,0.3251,59320.0,59298.0,0.000822]
[1726441719842,1.105824,59309.0,59298.0,0.000822]
[1726441720063,0.6550427,59309.0,59298.0,0.000822]
[1726441720319,0.16436694,59309.0,59298.0,0.000822]
[1726441720549,0.33297494,59309.0,59298.0,0.000822]
[1726441720784,0.67019094,59309.0,59298.0,0.000822]
[1726441721035,0.33297494,59309.0,59298.0,0.000822]
[1726441721348,0.09084743,59309.0,59303.0,0.45384521]
[1726441721835,0.07465456,59309.0,59304.0,0.002]
[1726441722746,0.07465456,59309.0,59303.0,0.45384521]
[1726441723882,0.07465456,59309.0,59298.0,0.000822]
[1726441724097,0.07465456,59309.0,59302.0,0.45384521]
[1726441724378,0.08962464,59309.0,59302.0,0.45384521]
[1726441724627,0.07465456,59309.0,59303.0,0.00337173]
[1726441724867,0.07465456,59309.0,59307.0,0.00619431]
[1726441725112,0.07458258,59309.0,59307.0,0.000823]
[1726441725627,0.04810206,59309.0,59307.0,0.000823]
[1726441725832,0.04810206,59309.0,59307.0,0.0041943]
[1726441726070,0.04810206,59309.0,59308.0,0.0086918]
[1726441727297,0.04810206,59309.0,59308.0,0.02684181]
[1726441727543,0.04810206,59309.0,59308.0,0.19882415]
[1726441727544,0.01420206,59309.0,59308.0,0.19882415]
[1726441727785,0.01420206,59309.0,59308.0,0.87326815]
[1726441728030,0.01420206,59309.0,59308.0,0.03021315]
[1726441728291,0.01420206,59309.0,59308.0,0.1773028]
[1726441728545,0.168552,59329.0,59311.0,0.002]
[1726441728799,0.387097,59330.0,59311.0,0.01781218]
[1726441728800,0.25291484,59320.0,59311.0,0.01781218]
[1726441729066,0.02647523,59327.0,59308.0,0.0075128]
[1726441729319,0.168591,59315.0,59308.0,0.0075128]
[1726441729821,0.168592,59315.0,59308.0,0.0075128]
[1726441730077,0.04147574,59314.0,59308.0,0.0075128]
[1726441731013,0.04147574,59314.0,59308.0,0.0048652]
[1726441731529,0.168598,59313.0,59308.0,0.0048652]
[1726441731782,0.04147574,59314.0,59308.0,0.0048652]
[1726441732090,0.01498715,59312.0,59308.0,0.0048652]
[1726441732326,0.01756686,59313.0,59308.0,0.0048652]
[1726441732573,0.01498715,59311.0,59308.0,0.0048652]
[1726441732829,0.01756686,59313.0,59308.0,0.0048652]
[1726441733069,0.168601,59312.0,59308.0,0.0048652]
[1726441733320,0.01498715,59312.0,59308.0,0.0048652]
[1726441735484,0.01498715,59312.0,59307.0,0.0006882]
[1726441737392,0.02934129,59311.0,59307.0,0.0006882]
[1726441737606,0.02934129,59310.0,59307.0,0.0006882]
[1726441737826,0.02934129,59309.0,59307.0,0.0006882]
[1726441738046,0.02934129,59308.0,59307.0,0.0006882]
[1726441738336,0.0149607,59308.0,59307.0,0.0006882]
[1726441738550,0.04431918,59308.0,59307.0,0.0006882]
[1726441738764,0.02935848,59308.0,59307.0,0.0006882]
[1726441738979,0.07079833,59308.0,59307.0,0.01761952]
[1726441739203,0.07079833,59308.0,59307.0,0.5065302]
[1726441739204,0.05583763,59308.0,59307.0,0.5065302]
[1726441739421,0.07421561,59308.0,59307.0,0.5065302]
[1726441739696,0.07421561,59308.0,59307.0,0.63629214]
[1726441739937,0.07421561,59308.0,59307.0,0.8457582]
[1726441740183,0.07421561,59308.0,59307.0,0.80403264]
[1726441740425,0.07421561,59308.0,59307.0,1.13626064]
[1726441741090,0.02647915,59308.0,59307.0,1.13626064]
[1726441741314,0.07426647,59308.0,59307.0,0.946382]
[1726441741570,0.01756686,59313.0,59312.0,0.708098]
[1726441741794,0.25290845,59328.0,59313.0,0.025]
[1726441742011,0.01756686,59323.0,59317.0,0.168584]
[1726441742242,0.01756686,59323.0,59319.0,0.168578]
[1726441742674,0.01756686,59323.0,59317.0,0.168583]
[1726441742884,0.01756686,59323.0,59319.0,0.168578]
[1726441743097,0.01756686,59323.0,59319.0,0.002]
[1726441743529,0.01756686,59323.0,59318.0,0.16858]
[1726441744223,0.01756686,59323.0,59316.0,0.46409044]
[1726441744469,0.01756686,59323.0,59316.0,0.29550244]
[1726441744745,0.01756686,59323.0,59307.0,0.000822]
[1726441744746,1.01145472,59322.0,59307.0,0.000822]
[1726441744997,0.05,59319.0,59307.0,0.000822]
[1726441745240,0.387163,59319.0,59307.0,0.000822]
[1726441745492,0.168589,59316.0,59307.0,0.000822]
[1726441745712,0.01357718,59318.0,59307.0,0.000822]
[1726441745930,0.05,59313.0,59307.0,0.000822]
[1726441746156,0.168601,59312.0,59307.0,0.000822]
[1726441746375,0.05,59313.0,59307.0,0.000822]
[1726441746587,0.01357718,59311.0,59307.0,0.000822]
[1726441746833,0.05,59313.0,59307.0,0.000822]
[1726441747058,0.01357718,59310.0,59307.0,0.000822]
[1726441747557,0.218598,59313.0,59307.0,0.000822]
[1726441747786,0.01357718,59309.0,59307.0,0.000822]
[1726441748012,0.01344362,59312.0,59307.0,0.000822]
[1726441748240,0.05,59313.0,59307.0,0.000822]
[1726441748473,0.01344362,59311.0,59307.0,0.000822]
[1726441748943,0.168586,59317.0,59307.0,0.000822]
[1726441749160,0.01344362,59310.0,59307.0,0.000822]
[1726441749389,0.168594,59314.0,59307.0,0.000822]
[1726441749611,0.36364901,59318.0,59307.0,0.000822]
[1726441749612,0.01344362,59309.0,59307.0,0.000822]
[1726441749849,0.02647884,59313.0,59307.0,0.000822]
[1726441750281,0.01344413,59312.0,59307.0,0.000822]
[1726441752639,0.02647884,59313.0,59307.0,0.000822]
[1726441753089,0.01344177,59312.0,59307.0,0.000822]
[1726441753561,0.0177642,59311.0,59307.0,0.000822]
[1726441753864,0.01344177,59312.0,59307.0,0.000822]
[1726441753865,0.0177639,59310.0,59307.0,0.000822]
[1726441754111,0.0677639,59309.0,59307.0,0.000822]
[1726441754348,0.18204777,59310.0,59307.0,0.000822]
[1726441754349,0.01780584,59308.0,59307.0,0.000822]
[1726441754574,0.03126422,59308.0,59307.0,0.000822]
[1726441755506,0.03126422,59308.0,59298.0,0.000822]
[1726441755507,0.15,59307.0,59298.0,0.000822]
[1726441755786,0.05,59299.0,59298.0,0.000822]
[1726441756009,0.01780584,59299.0,59298.0,0.000822]
[1726441756229,0.03123772,59299.0,59298.0,0.000822]
[1726441756946,0.03123772,59299.0,59287.0,0.000823]
[1726441756947,0.85,59293.0,59287.0,0.000823]
[1726441757192,0.3204,59297.0,59285.0,0.0031371]
[1726441757193,0.50602,59286.0,59285.0,0.0031371]
[1726441757454,0.53543134,59286.0,59285.0,0.0031371]
[1726441757675,0.22943296,59286.0,59285.0,0.0031371]
[1726441757903,0.22943296,59286.0,59271.0,0.00347361]
[1726441757904,0.15,59283.0,59271.0,0.0001]
[1726441758167,0.1,59277.0,59271.0,0.0001]
[1726441758429,0.04733419,59276.0,59271.0,0.0001]
[1726441758694,0.04733419,59275.0,59264.0,0.03797]
[1726441758969,0.02649578,59276.0,59265.0,0.00337414]
[1726441758970,0.04733419,59274.0,59265.0,0.00337414]
[1726441759227,0.07383099,59273.0,59264.0,0.03797]
[1726441759462,0.07383099,59273.0,59260.0,0.0065335]
[1726441759463,0.168737,59264.0,59260.0,0.0065335]
[1726441759695,0.05,59267.0,59260.0,0.0065335]
[1726441759696,0.14733419,59263.0,59260.0,0.0065335]
[1726441759976,0.04733419,59262.0,59261.0,0.00337436]
[1726441760197,0.04733419,59262.0,59260.0,0.0065335]
[1726441760454,0.04733419,59261.0,59260.0,0.0065335]
[1726441760917,0.05924073,59261.0,59260.0,0.0065335]
[1726441761144,0.05924073,59261.0,59260.0,0.47086515]
[1726441761365,0.05924073,59261.0,59260.0,0.0065335]
[1726441761581,0.04733419,59261.0,59260.0,0.0065335]
[1726441761826,0.05920295,59261.0,59260.0,0.0065335]
[1726441762059,0.04733419,59261.0,59260.0,0.0065335]
[1726441762502,0.05920295,59261.0,59260.0,0.0065335]
[1726441764691,0.06217014,59261.0,59260.0,0.0065335]
[1726441767268,0.23091514,59261.0,59260.0,0.0065335]
[1726441767497,0.06388315,59261.0,59260.0,0.0065335]
[1726441768921,0.06388315,59261.0,59260.0,0.0073555]
[1726441769365,0.23262815,59261.0,59260.0,0.0073555]
[1726441769591,0.01483595,59261.0,59260.0,0.0073555]
[1726441769851,0.06549926,59261.0,59260.0,0.0073555]
[1726441770070,0.06549926,59261.0,59231.0,0.0566335]
[1726441770071,0.337565,59248.0,59231.0,0.0566335]
[1726441770369,0.01705874,59233.0,59231.0,0.0566335]
[1726441770630,0.03654463,59233.0,59231.0,0.0566335]
[1726441770844,0.0483638,59233.0,59231.0,0.0558335]
[1726441771077,0.0959345,59232.0,59231.0,0.0558335]
[1726441771344,0.069788,59232.0,59231.0,0.0558335]
[1726441771588,0.0886288,59232.0,59231.0,0.0557335]
[1726441771835,0.06248248,59232.0,59231.0,0.0549335]
[1726441772331,0.06543727,59232.0,59231.0,0.0548335]
[1726441772556,0.06543727,59232.0,59231.0,0.0543335]
[1726441772775,0.08300413,59232.0,59231.0,0.0539335]
[1726441773246,0.08275131,59232.0,59231.0,0.0538335]
[1726441773464,0.08275131,59232.0,59231.0,0.0531335]
[1726441773680,0.25157831,59232.0,59231.0,0.0530335]
[1726441773915,0.08275131,59232.0,59231.0,0.0529335]
[1726441774235,0.01477397,59232.0,59231.0,0.51724815]
[1726441774389,0.01477397,59232.0,59231.0,0.56897297]
[1726441774608,0.02614362,59241.0,59231.0,0.34841815]
[1726441774854,0.02614362,59239.0,59232.0,0.00337554]
[1726441775287,0.02614362,59240.0,59239.0,0.168807]
[1726441775502,0.02650921,59246.0,59240.0,0.023]
[1726441775719,1.01286336,59257.0,59243.0,0.46437865]
[1726441775968,1.01286336,59257.0,59239.0,0.023]
[1726441776214,0.337502,59259.0,59239.0,0.023]
[1726441776449,0.4319,59260.0,59239.0,0.023]
[1726441776450,0.168762,59255.0,59239.0,0.023]
[1726441776913,0.337516,59257.0,59239.0,0.023]
[1726441777124,0.168783,59248.0,59234.0,0.023]
[1726441777341,0.168776,59250.0,59236.0,0.023]
[1726441777564,0.337534,59254.0,59238.0,0.023]
[1726441777793,0.01756686,59257.0,59238.0,0.023]
[1726441777794,0.168768,59253.0,59239.0,0.00337504]
[1726441778085,0.01756686,59257.0,59238.0,0.023]
[1726441778086,0.337545,59252.0,59238.0,0.023]
[1726441778331,0.01756686,59257.0,59237.0,0.023]
[1726441778603,0.387536,59253.0,59219.0,0.03376]
[1726441778831,0.168801,59242.0,59223.0,0.46443565]
[1726441779066,0.337575,59246.0,59223.0,0.46443565]
[1726441779067,0.168802,59241.0,59224.0,0.16885]
[1726441779314,0.41404299,59253.0,59223.0,0.29558465]
[1726441779554,0.41404299,59253.0,59225.0,0.337692]
[1726441779555,0.168788,59246.0,59225.0,0.337692]
[1726441779813,0.506482,59232.0,59208.0,0.03376]
[1726441780053,0.506482,59232.0,59214.0,0.00651383]
[1726441780054,0.05,59225.0,59214.0,0.00651383]
[1726441780278,0.1,59227.0,59201.0,0.29558465]
[1726441780279,0.01012902,59204.0,59201.0,0.29558465]
[1726441780529,1.2044,59232.0,59204.0,0.002]
[1726441780530,0.5286,59232.0,59204.0,0.002]
[1726441780765,1.01286336,59223.0,59216.0,0.337745]
[1726441780977,0.3311,59232.0,59217.0,0.33774]
[1726441780978,0.01271196,59231.0,59217.0,0.33774]
[1726441781237,0.3311,59232.0,59215.0,0.002]
[1726441781238,0.3311,59232.0,59227.0,0.29558465]
[1726441781480,0.01271196,59230.0,59229.0,0.168836]
[1726441781693,0.02651305,59231.0,59230.0,0.168833]
[1726441782119,0.02651305,59231.0,59221.0,0.29558465]
[1726441782121,0.02651305,59231.0,59223.0,0.168852]
[1726441782355,0.168802,59241.0,59224.0,0.168848]
[1726441782570,0.02651282,59231.0,59225.0,0.168846]
[1726441782789,0.16881,59239.0,59226.0,0.0033758]
[1726441783005,0.669499,59242.0,59226.0,0.0033758]
[1726441783006,0.02651352,59230.0,59226.0,0.00337586]
[1726441783252,0.02651352,59230.0,59223.0,0.00337586]
[1726441783475,0.168812,59238.0,59223.0,0.00337586]
[1726441783700,0.02651285,59230.0,59223.0,0.00337586]
[1726441783918,0.02651285,59230.0,59223.0,0.17222786]
[1726441784153,0.02996382,59229.0,59223.0,0.00337586]
[1726441784369,0.02971162,59228.0,59222.0,0.02637603]
[1726441784601,0.02651285,59230.0,59222.0,0.19523003]
[1726441784830,0.02651285,59230.0,59224.0,0.168849]
[1726441785496,0.02651285,59230.0,59222.0,0.19523096]
[1726441785721,0.1,59241.0,59222.0,0.00334703]
[1726441785957,0.05,59237.0,59217.0,0.191868]
[1726441786170,0.05,59237.0,59218.0,0.03735075]
[1726441786171,0.0186589,59236.0,59218.0,0.03735075]
[1726441786384,0.0186589,59235.0,59218.0,0.03735075]
[1726441786597,0.0186589,59235.0,59211.0,0.337772]
[1726441786598,0.0186589,59234.0,59213.0,0.16888]
[1726441786813,0.01471888,59235.0,59213.0,0.16888]
[1726441786814,0.01526495,59214.0,59213.0,0.168881]
[1726441787075,0.01526495,59214.0,59205.0,0.0054655]
[1726441787076,0.03392385,59214.0,59206.0,0.29558465]
[1726441787310,0.05,59225.0,59205.0,0.0054655]
[1726441787311,0.01726116,59207.0,59205.0,0.0054655]
[1726441787541,0.03599138,59206.0,59205.0,0.0054655]
[1726441787977,0.05072433,59206.0,59205.0,0.0054655]
[1726441788638,0.05072433,59206.0,59198.0,9.797e-05]
[1726441788639,0.07724718,59206.0,59198.0,9.797e-05]
[1726441788942,0.07724718,59206.0,59200.0,0.0442014]
[1726441788943,0.01825962,59201.0,59200.0,0.0442014]
[1726441789204,0.0412558,59206.0,59200.0,0.0442014]
[1726441789205,0.05,59204.0,59200.0,0.02156438]
[1726441789432,0.01463982,59201.0,59200.0,0.02156438]
[1726441789652,0.52550837,59201.0,59200.0,0.02156438]
[1726441789867,0.57550837,59201.0,59200.0,0.02156438]
[1726441790102,0.168921,59199.0,59198.0,9.797e-05]
[1726441790330,0.168921,59199.0,59181.0,0.168971]
[1726441790331,0.05,59172.0,59158.0,0.338076]
[1726441790555,0.73535837,59172.0,59159.0,0.25337624]
[1726441790832,0.557046,59166.0,59146.0,0.025]
[1726441791043,0.91383737,59166.0,59146.0,0.025]
[1726441791278,0.19876037,59166.0,59146.0,0.025]
[1726441791550,0.19876037,59166.0,59100.0,0.005]
[1726441791551,0.063,59114.0,59100.0,0.005]
[1726441791766,0.063,59114.0,59088.0,0.54358312]
[1726441791767,0.01764265,59107.0,59095.0,0.63401965]
[1726441791993,0.01764265,59107.0,59104.0,0.45663573]
[1726441792354,0.01764265,59107.0,59104.0,0.169192]
[1726441792355,0.03360276,59106.0,59104.0,0.169192]
[1726441792574,0.20638782,59106.0,59105.0,0.17257313]
[1726441792821,0.20638782,59106.0,59101.0,0.00336768]
[1726441792822,0.0188395,59105.0,59101.0,0.00336768]
[1726441793010,0.191748,59106.0,59102.0,0.03]
[1726441793011,0.0188395,59104.0,59102.0,0.03]
[1726441793231,0.191748,59103.0,59102.0,0.03]
[1726441793492,0.191748,59103.0,59088.0,0.57358312]
[1726441793493,0.191748,59105.0,59088.0,0.54358312]
[1726441793707,0.01463982,59103.0,59089.0,0.00338359]
[1726441793954,0.21058445,59102.0,59092.0,0.00338371]
[1726441794170,0.21058445,59101.0,59092.0,0.00338371]
[1726441794427,0.01463982,59102.0,59100.0,0.45663573]
[1726441794637,0.01463982,59102.0,59101.0,0.00338267]
[1726441794875,0.01764265,59107.0,59091.0,0.338557]
[1726441794876,0.191748,59101.0,59092.0,0.48663573]
[1726441795111,0.191748,59106.0,59093.0,0.00338364]
[1726441795567,0.191748,59106.0,59098.0,0.45663573]
[1726441795808,0.191748,59106.0,59091.0,0.0001]
[1726441795809,0.05070701,59105.0,59091.0,0.0001]
[1726441796046,0.191748,59104.0,59091.0,0.00348351]
[1726441796270,0.05070701,59103.0,59091.0,0.00348351]
[1726441796521,0.191748,59102.0,59097.0,0.45663573]
[1726441796773,0.02610175,59124.0,59097.0,0.45663573]
[1726441796774,0.19520475,59136.0,59108.0,0.002]
[1726441797007,1.01466186,59110.0,59109.0,0.02638163]
[1726441797227,1.01466186,59127.0,59116.0,0.023]
[1726441797499,0.01937421,59126.0,59116.0,0.023]
[1726441797714,0.02656031,59125.0,59110.0,0.00338228]
[1726441797933,0.01907172,59124.0,59111.0,0.00338262]
[1726441798149,0.02656031,59125.0,59102.0,0.05322993]
[1726441798150,0.04958243,59123.0,59102.0,0.05322993]
[1726441798369,0.02656031,59125.0,59103.0,0.00338256]
[1726441798370,0.01907172,59122.0,59103.0,0.00338256]
[1726441798617,0.02656031,59125.0,59103.0,0.00338256]
[1726441798853,0.01906855,59124.0,59103.0,0.00338256]
[1726441799100,0.026563,59118.0,59104.0,0.023]
[1726441799353,0.026563,59118.0,59091.0,0.0001]
[1726441799592,0.338296,59120.0,59091.0,0.00348312]
[1726441799593,0.01885121,59117.0,59091.0,0.00348312]
[1726441799807,0.1911,59121.0,59093.0,0.45663573]
[1726441799808,0.02656815,59112.0,59093.0,0.45663573]
[1726441800003,0.01885121,59111.0,59094.0,0.00338293]
[1726441800282,0.02656815,59112.0,59091.0,0.0001]
[1726441800555,0.02656815,59112.0,59095.0,0.00338309]
[1726441800556,0.01907979,59111.0,59095.0,0.00338309]
[1726441800773,0.01907979,59111.0,59100.0,0.45663573]
[1726441800774,1.01466186,59110.0,59100.0,0.45663573]
[1726441801031,0.01043469,59111.0,59093.0,0.45663573]
[1726441801268,0.02656815,59112.0,59094.0,0.00338326]
[1726441801518,0.01906286,59111.0,59094.0,0.00338347]
[1726441801728,0.01906177,59110.0,59094.0,0.00338347]
[1726441801947,0.01906177,59109.0,59094.0,0.00338347]
[1726441802197,0.02656815,59112.0,59100.0,0.45663573]
[1726441802444,0.01043469,59108.0,59102.0,0.03376]
[1726441802662,0.02656771,59110.0,59103.0,0.00338272]
[1726441802875,0.02656771,59110.0,59108.0,0.03376]
[1726441803100,0.02656771,59110.0,59106.0,0.169185]
[1726441803374,0.01043469,59109.0,59108.0,0.169181]
[1726441803585,0.3198,59128.0,59108.0,0.169181]
[1726441803586,1.01466186,59129.0,59117.0,0.03376]
[1726441803829,1.01466186,59129.0,59116.0,0.023]
[1726441803830,1.01466186,59129.0,59128.0,0.225884]
[1726441804099,0.03,59144.0,59135.0,0.338208]
[1726441804346,1.01466186,59145.0,59141.0,0.169085]
[1726441804593,0.03,59147.0,59141.0,0.169085]
[1726441804827,0.03,59149.0,59142.0,0.00335464]
[1726441805097,0.03,59149.0,59140.0,0.023]
[1726441805337,0.03,59150.0,59144.0,0.03394]
[1726441805586,0.03,59151.0,59144.0,0.03394]
[1726441805821,0.03,59148.0,59131.0,0.338227]
[1726441806033,0.03,59148.0,59114.0,0.178]
[1726441806034,0.03,59134.0,59107.0,0.03]
[1726441806474,0.03,59128.0,59121.0,0.169143]
[1726441806695,0.0291,59128.0,59122.0,0.03394]
[1726441806923,0.029,59118.0,59102.0,0.338395]
[1726441807152,0.029,59117.0,59095.0,0.03]
[1726441807400,0.029,59117.0,59105.0,0.03394]
[1726441807617,1.01462755,59131.0,59107.0,0.03394]
[1726441807618,0.002,59116.0,59107.0,0.03394]
[1726441807849,0.028,59123.0,59107.0,0.03394]
[1726441808076,0.028,59126.0,59107.0,0.03394]
[1726441808303,0.028,59126.0,59118.0,0.169152]
[1726441808515,0.027,59126.0,59115.0,0.338322]
[1726441808722,0.027,59126.0,59112.0,0.03394]
[1726441808935,0.027,59122.0,59114.0,0.023]
[1726441809178,0.027,59129.0,59119.0,0.338299]
[1726441809418,0.3459,59132.0,59122.0,0.03394]
[1726441809656,0.0089341,59128.0,59124.0,0.169134]
[1726441809906,0.0089341,59131.0,59122.0,0.03394]
[1726441810148,0.04406686,59133.0,59119.0,0.03394]
[1726441810149,0.0265,59123.0,59119.0,0.03394]
[1726441810357,0.0265,59123.0,59119.0,0.20309]
[1726441811014,0.0265,59123.0,59121.0,0.169143]
[1726441811252,0.02655905,59123.0,59122.0,0.169141]
[1726441811504,0.02655905,59123.0,59122.0,0.203081]
[1726441811720,0.02655905,59123.0,59122.0,0.541364]
[1726441811988,0.02655905,59123.0,59122.0,0.203081]
[1726441812198,0.02655905,59123.0,59122.0,0.507424]
[1726441812415,0.02655905,59123.0,59122.0,0.845707]
[1726441813127,0.01756686,59133.0,59132.0,0.507339]
[1726441813358,0.01756686,59133.0,59132.0,1.40940692]
[1726441813606,0.01756686,59133.0,59132.0,1.2914649]
[1726441814995,0.01756686,59133.0,59132.0,1.74763292]
[1726441815269,0.25371266,59149.0,59132.0,1.74763292]
[1726441815270,0.28021266,59149.0,59148.0,0.507201]
[1726441815495,0.25371266,59149.0,59148.0,0.845335]
[1726441815718,0.0265,59150.0,59141.0,0.338173]
[1726441815719,0.0265,59150.0,59149.0,0.845322]
[1726441815959,0.0265,59143.0,59133.0,0.17124021]
[1726441816197,0.0265,59143.0,59080.0,0.08474783]
[1726441816198,0.0265,59129.0,59105.0,0.45616802]
[1726441816443,0.0265,59129.0,59128.0,0.169124]
[1726441816665,0.0265,59129.0,59105.0,0.45616802]
[1726441816666,0.0265,59129.0,59123.0,0.169137]
[1726441816916,0.0265,59129.0,59128.0,0.169124]
[1726441817378,0.0265,59131.0,59130.0,0.169118]
[1726441817588,0.00165,59129.0,59128.0,0.169123]
[1726441817837,0.00165,59129.0,59128.0,0.8997539]
[1726441818089,0.00165,59129.0,59128.0,1.2610029]
[1726441818373,0.00085,59129.0,59128.0,1.20687]
[1726441819054,0.00085,59129.0,59112.0,0.03]
[1726441819055,0.0265,59126.0,59115.0,0.03394]
[1726441819292,0.0265,59126.0,59118.0,0.338304]
[1726441819524,0.0265,59126.0,59124.0,0.169135]
[1726441819761,0.0265,59126.0,59115.0,0.03394]
[1726441819762,0.00085,59129.0,59128.0,0.507373]
[1726441819982,0.00085,59129.0,59128.0,1.183871]
[1726441820747,0.00085,59129.0,59128.0,1.206871]
[1726441820969,0.00085,59129.0,59128.0,1.240811]
[1726441821191,0.00085,59129.0,59128.0,1.3648921]
[1726441821504,0.00085,59129.0,59128.0,0.507373]
[1726441822449,0.02735,59129.0,59123.0,0.338272]
[1726441822706,0.02735,59129.0,59104.0,0.338383]
[1726441822707,0.0265,59117.0,59104.0,0.338383]
[1726441822944,0.0265,59117.0,59094.0,0.030823]
[1726441822945,0.0265,59114.0,59094.0,0.030823]
[1726441823189,0.002,59117.0,59094.0,0.000823]
[1726441823190,0.0265,59107.0,59094.0,0.000823]
[1726441823440,0.0265,59105.0,59102.0,0.169197]
[1726441823679,0.0265,59097.0,59096.0,0.169215]
[1726441823924,0.0265,59097.0,59096.0,0.507647]
[1726441824181,0.0265,59097.0,59096.0,0.846079]
[1726441824398,0.002,59108.0,59094.0,0.000823]
[1726441824399,0.0265,59095.0,59094.0,0.170044]
[1726441824621,0.04186315,59095.0,59094.0,0.000823]
[1726441825119,0.01536315,59095.0,59094.0,0.508487]
[1726441825388,0.01536315,59095.0,59094.0,1.2700782]
[1726441825634,0.01536315,59095.0,59094.0,0.84693]
[1726441825635,0.04186315,59095.0,59094.0,0.84693]
[1726441825861,0.01536315,59095.0,59094.0,0.84693]
[1726441826095,0.04186315,59095.0,59094.0,0.508487]
[1726441827038,0.04186315,59095.0,59094.0,0.84693]
[1726441827039,0.01536315,59095.0,59094.0,0.84693]
[1726441827299,0.01536315,59095.0,59094.0,0.9316334]
[1726441827554,0.01536315,59095.0,59094.0,0.84693]
[1726441827798,0.01536315,59095.0,59094.0,1.185373]
[1726441828227,0.01536315,59095.0,59094.0,1.219313]